Cogmind - Beta 16.1 @@@ ROGUE MODE // 2026.04.27 @ 18:26:49 Player: ChromeKnight Result: Self-destructed Performance ------------- Evolutions (7) 3500 Regions Visited (17) 3400 Robots Destroyed (249) 1245 Value Destroyed (8119) 8119 Prototype IDs (39) 780 Alien Tech Used (0) 0 Bonus (1483) 1483 TOTAL SCORE: 18527 Bonus ------- High Alert Combat Kills 665 Follower Combat Kills 35 Aligned with FarCom 300 MAIN.C Attacked Warlord 500 Friendly Fire -17 Cogmind --------- Core Integrity 1300/1300 Matter 142/300 Energy 157/157 System Corruption 1% Temperature Cool (20) Movement Hovering (189) Ox1 Location -3/Research Parts ------- > --- POWER (2) -------- Antimatter-Neutrino Reactor > --- PROPULSION (5) --- Hovering Gyrokinetic-FPA Exoskeleton > --- UTILITY (10) ----- Armored Scrap Engine Improved Coolant Injector Medium Storage Unit Advanced Sensor Array Advanced Signal Interpreter Heavy Reflective Plating > --- WEAPON (4) ------- Hvy. KE Construct/C > --- INVENTORY (10) --- Quantum Capacitor Heavy Reflective Plating Heavy Reflective Plating Heavy Reflective Plating Peak State ------------ > --- POWER ------------ Antimatter-Neutrino Reactor > --- PROPULSION ------- Hovering Gyrokinetic-FPA Exoskeleton > --- UTILITY ---------- Armored Scrap Engine Improved Coolant Injector Medium Storage Unit Advanced Sensor Array Advanced Signal Interpreter Heavy Reflective Plating Heavy Reflective Plating > --- WEAPON ----------- Hvy. KE Construct/C > --- INVENTORY -------- Quantum Capacitor Heavy Reflective Plating Heavy Reflective Plating [Rating: 107] Favorites ----------- Power Constructs Engine Improved Ion Engine Power Core Light Nuclear Core Reactor Constructs Propulsion Light Treads Treads Light Treads Leg Improved Aluminum Leg Wheel Wheel Hover Unit Constructs Flight Unit Flight Unit Utility High-capacity Storage Unit Device Transmission Jammer Storage High-capacity Storage Unit Processor Experimental Core Analyzer Hackware Hacking Suite Protection Light Regenerative Plating Weapon Gauss Rifle Energy Gun Heavy EM Shotgun Energy Cannon Plasma Cannon Ballistic Gun Gauss Rifle Ballistic Cannon Constructs Launcher Heavy Missile Launcher Special Weapon Plasma Cutter Build | -11 -10 -9 -9 -9 -8 -8 -7 -7 -7 -5 -5 -5 -5 -5 -4 -4 -3 ------- Run | Yrd Mat Mat Min Exi Min Mat Fac Sto Rec Fac Was Fac Upp War Pro Fac Res Slots Evolved 14 | . . 2 . . . 2 2 . . 4 . . . . . 2 2 Power 1 | . . . . . . . . . . 1 . . . . . . . Propulsion 3 | . . 1 . . . 1 . . . 1 . . . . . . . Utility 8 | . . 1 . . . 1 2 . . 1 . . . . . 1 2 Weapon 2 | . . . . . . . . . . 1 . . . . . 1 . Parts Attached 163 | 7 7 15 8 11 4 22 43 16 3 7 . 6 . . 1 11 2 Power 18 | 1 2 1 1 1 . 3 6 . . . . 1 . . 1 1 . Engine 12 | 1 1 1 1 1 . 3 4 . . . . . . . . . . Core 5 | . 1 . . . . . 2 . . . . 1 . . 1 . . Reactor 1 | . . . . . . . . . . . . . . . . 1 . Propulsion 49 | 3 . 9 3 3 3 7 11 8 1 1 . . . . . . . Treads 26 | 1 . 1 2 2 . 6 9 5 . . . . . . . . . Leg 6 | . . . . 1 3 1 . . 1 . . . . . . . . Wheel 9 | 2 . 2 1 . . . 1 3 . . . . . . . . . Hover 1 | . . . . . . . 1 . . . . . . . . . . Flight 7 | . . 6 . . . . . . . 1 . . . . . . . Utility 61 | 1 1 4 2 4 . 6 17 3 2 5 . 5 . . . 9 2 Device 22 | . . 1 1 3 . 2 4 2 2 3 . 2 . . . 2 . Storage 4 | 1 1 1 . . . . . . . . . 1 . . . . . Processor 8 | . . . . 1 . 1 2 . . 1 . 1 . . . 2 . Hackware 2 | . . . . . . . 2 . . . . . . . . . . Protection 25 | . . 2 1 . . 3 9 1 . 1 . 1 . . . 5 2 Artifact . | . . . . . . . . . . . . . . . . . . Weapon 35 | 2 4 1 2 3 1 6 9 5 . 1 . . . . . 1 . Energy Gun 5 | 1 1 . . . . 2 . 1 . . . . . . . . . Energy Cannon 3 | . . . 1 1 . . . . . 1 . . . . . . . Ballistic Gun 15 | 1 1 . . 2 . 3 7 1 . . . . . . . . . Ballistic Cannon 8 | . 2 1 1 . . . 2 1 . . . . . . . 1 . Launcher 3 | . . . . . 1 1 . 1 . . . . . . . . . Special Weapon 1 | . . . . . . . . 1 . . . . . . . . . Impact Weapon . | . . . . . . . . . . . . . . . . . . Slashing Weapon . | . . . . . . . . . . . . . . . . . . Piercing Weapon . | . . . . . . . . . . . . . . . . . . Special Melee Weapon . | . . . . . . . . . . . . . . . . . . Unidentified Prototypes 12 | . . . . 3 . 2 1 2 1 2 . . . . . 1 . Corrupted Parts 1 | . . . . 1 . . . . . . . . . . . . . System Corruption 10 | . . . . 10 . . . . . . . . . . . . . Parts Lost 51 | . 6 5 . 6 3 7 12 3 . . 1 . . . 2 6 . Power 10 | . 2 1 . . 1 1 3 . . . . . . . 1 1 . Propulsion 22 | . 2 4 . 3 2 4 5 1 . . . . . . . 1 . Utility 10 | . . . . 3 . . 2 . . . 1 . . . . 4 . Weapon 9 | . 2 . . . . 2 2 2 . . . . . . 1 . . Highest Loss Streak 4 | . 4 3 . 2 2 3 4 1 . . 1 . . . 2 2 . To Critical Strikes 2 | . . . . 2 . . . . . . . . . . . . . Average Backups 14 | . 7 13 17 11 17 17 19 19 12 13 16 12 10 10 10 6 4 Power . | . . . . . 1 1 1 2 . . . . . . . . . Propulsion 2 | . 2 4 7 2 3 1 3 7 3 . . . . . . . . Utility 7 | . 3 3 2 3 7 9 9 7 7 10 12 10 10 10 10 6 4 Weapon 2 | . . 4 6 4 5 4 5 1 . . 3 1 . . . . . Tool/Special . | . . . . . . . . . . . . . . . . . . Unused Backups 60 | . . 4 3 6 . 13 17 2 6 2 . 1 . . . 4 2 Power 9 | . . . . 3 . 4 . . 2 . . . . . . . . Propulsion 8 | . . 2 . . . . 1 . 4 1 . . . . . . . Utility 26 | . . 1 . 1 . 5 13 . . . . . . . . 4 2 Weapon 15 | . . . 3 1 . 4 3 2 . 1 . 1 . . . . . Tool/Special 2 | . . 1 . 1 . . . . . . . . . . . . . Average Slot Usage (%) 76 | . 71 85 99 74 78 90 97 88 56 51 50 53 58 58 50 49 42 Engine 6 | . 12 6 11 10 11 8 5 7 6 1 . . . . . . . Core 1 | . 1 3 . . . . . . . 3 5 5 5 5 3 2 4 Treads 14 | . 6 7 14 23 . 25 28 25 . . . . . . . 1 . Leg 1 | . . . . 1 24 6 . . . . . . . . . 3 . Wheel 3 | . 13 12 17 3 . . . 2 7 . . . . . . . . Hover 1 | . . . . . . . . . 2 3 . 2 5 5 4 . 1 Device 8 | . . 6 11 5 . . 5 6 17 17 16 19 23 23 23 14 14 Storage 7 | . 14 11 11 7 11 9 7 7 7 5 5 5 5 5 5 5 4 Processor 5 | . . . . 2 11 9 13 3 . 3 5 5 5 5 5 6 4 Hackware 1 | . . . . . . . 6 1 . . . . . . . . . Protection 7 | . . 6 11 4 . 13 9 16 10 6 4 2 . . . 6 4 Energy Gun 1 | . 7 . . . . 5 . 2 . . . . . . . . . Energy Cannon 1 | . . . 8 10 . . . . . . . . . . . . . Ballistic Gun 6 | . 13 . . 1 11 10 14 8 1 3 . . . . . . . Ballistic Cannon 3 | . 1 22 13 3 . . . 2 1 1 5 5 5 5 5 5 4 Peak Build Rating 107 | 6 7 12 23 32 32 41 54 61 71 82 82 91 91 91 92 99 107 Average Rating 46 | 3 5 10 19 22 29 36 49 50 53 66 80 82 91 91 87 89 98 On Entrance 51 | . 6 7 12 23 30 26 40 50 61 51 82 72 91 91 91 92 98 Avg Prop Armor Cover (%) 9 | 21 . 8 9 14 6 3 7 10 . . . . . . . . . Naked Turns . | . . . . . . . . . . . . . . . . . . Heaviest Build 96 | 11 31 53 69 69 57 69 84 95 96 73 73 85 44 44 49 68 55 Greatest Support 130 | 20 20 20 20 60 40 80 84 80 56 41 41 62 62 62 130 130 56 Greatest Overweight (x) 8 | . 2 3 4 4 5 3 8 8 3 3 1 2 . . . . 1 Average Overweight (x) 1 | . . 1 3 1 1 . . 1 2 2 1 . . . . . . Largest Inventory Capacity 20 | 8 15 20 20 20 20 20 20 20 20 20 20 20 10 10 10 10 10 Average Capacity 16 | 5 14 16 20 15 20 20 20 20 20 20 20 13 10 10 10 10 10 Most Carried 20 | 2 10 20 20 20 20 20 20 20 19 18 18 18 10 10 10 10 8 Average Carried 14 | 1 7 13 18 12 16 17 19 19 13 13 18 12 10 10 10 8 7 Final Capacity 20 | 8 15 20 20 20 20 20 20 20 20 20 20 10 10 10 10 10 10 Final Carried 20 | 2 9 19 19 20 17 20 20 19 9 18 18 10 10 10 10 8 8 Scrap Engine Consumption 85 | . . . . . . . . . 18 18 2 5 . . 4 38 . Constructs Created 5 | . . . . . . . . . 2 1 . . . . . 2 . Constructs Modified 35 | . . . . . . . . . 3 6 . 6 . . 1 16 3 Class Distribution -------------------- 40% | Scavenger-Mutant 38% | Mutant 20% | Construct Dominant Class ---------------- Mutant | -10/Materials Scavenger-Mutant | -9/Materials Scavenger-Mutant | -9/Mines Mutant | -9/Exiles Mutant | -8/Mines Scavenger-Mutant | -8/Materials Scavenger-Mutant | -7/Factory Scavenger-Mutant | -7/Storage Mutant | -7/Recycling Mutant | -5/Factory Construct | -5/Waste Construct | -5/Factory Construct | -5/Upper Caves Construct | -5/Warlord Construct | -4/Proximity Caves Construct | -4/Factory Mutant | -3/Research Resources | -11 -10 -9 -9 -9 -8 -8 -7 -7 -7 -5 -5 -5 -5 -5 -4 -4 -3 ----------- Run | Yrd Mat Mat Min Exi Min Mat Fac Sto Rec Fac Was Fac Upp War Pro Fac Res Matter Collected 6650 | 182 246 693 154 318 17 779 1753 809 215 233 . 372 15 . 194 670 . Remotely . | . . . . . . . . . . . . . . . . . . Salvage Created 10032 | . 567 932 224 267 7 2002 2746 923 191 340 . 498 7 . 160 1168 . Parts 545 | . 18 66 10 37 1 119 132 59 6 18 . 19 1 . 1 58 . Haulers Intercepted 13 | . . 3 . . . 4 3 2 . . . 1 . . . . . Recyclers Shooed 11 | . 1 1 . . . . 6 . . 2 . 1 . . . . . Parts Field Recycled . | . . . . . . . . . . . . . . . . . . Retrieved Matter . | . . . . . . . . . . . . . . . . . . Parts Self-Destructed 1 | . . . . . . . . . . . . . . . 1 . . Prevented 6 | . . . . . . . . . . . . . 6 . . . . Parts Restored . | . . . . . . . . . . . . . . . . . . Kills | -11 -10 -9 -9 -9 -8 -8 -7 -7 -7 -5 -5 -5 -5 -5 -4 -4 -3 ------- Run | Yrd Mat Mat Min Exi Min Mat Fac Sto Rec Fac Was Fac Upp War Pro Fac Res Combat Hostiles Destroyed 159 | . 11 19 6 4 1 32 34 18 3 8 . . . . 3 20 . Guns 81 | . 11 . . . . 21 34 8 . 7 . . . . . . . Cannons 56 | . . 19 6 4 . . . 1 3 1 . . . . 3 19 . AOE 22 | . . . . . 1 11 . 9 . . . . . . . 1 . Classes Destroyed 20 | . 6 3 1 3 . . 3 2 1 . . . . . 1 . . Worker 17 | . 1 1 . . . 5 1 4 . . . 4 . . . 1 . Builder 10 | . . 1 . . . 3 2 2 . . . 1 . . . 1 . Tunneler 1 | . . . . . . . 1 . . . . . . . . . . Hauler 13 | . . 3 . . . 4 3 2 . . . 1 . . . . . Recycler 19 | . 1 4 . . . 2 7 2 . . . 3 . . . . . Mechanic 2 | . . . . . . . . 1 . 1 . . . . . . . Operator 4 | . 2 . . . . 1 1 . . . . . . . . . . Drone 1 | . . . . . . . . . . . . . . . 1 . . Turret 1 | . . . . 1 . . . . . . . . . . . . . Watcher 21 | . 1 3 . . . 4 5 2 . . . 4 . . . 2 . Swarmer 33 | . 3 7 . . . 8 . 8 . 5 . . . . 2 . . Grunt 74 | . 8 7 5 . 1 16 18 4 . . . . . . . 15 . Brawler 5 | . . . 1 . . 1 1 . . . . . . . . 2 . Sentry 24 | . . 5 . . . 7 7 3 . 2 . . . . . . . Hunter 1 | . . . . . . . . 1 . . . . . . . . . Programmer 13 | . . . . . . . 7 2 . 1 . . . . . 3 . Heavy 1 | . . . . . . . 1 . . . . . . . . . . Scrapper 3 | . . . . . . . . . 3 . . . . . . . . Zionite 3 | . . . . 3 . . . . . . . . . . . . . Decomposer 1 | . . . . . . . . . . . . . 1 . . . . Packrat 2 | . . . . . . . . . . . . . . . 2 . . Assembled 3 | . . . . 3 . . . . . . . . . . . . . Best Kill Streak 12 | . 5 6 2 3 1 9 5 12 2 2 . 9 . . 2 7 . Combat Bots Only 10 | . 5 5 2 3 1 5 4 10 2 2 . . . . 2 7 . Max Kills in Single Turn 7 | . 1 1 1 2 1 4 2 7 1 1 . 4 1 . 1 2 . Gunslinging 1 | . . . . . . 1 1 . . . . . . . . . . Exploded 6 | . . . . . 1 4 . 6 . . . . . . . 1 . Melee . | . . . . . . . . . . . . . . . . . . Uniques/NPCs Destroyed 4 | . . . . 4 . . . . . . . . . . . . . 8R-AWN (-9/Exiles) EX-HEX (-9/Exiles) EX-BIN (-9/Exiles) EX-DEC (-9/Exiles) Combat | -11 -10 -9 -9 -9 -8 -8 -7 -7 -7 -5 -5 -5 -5 -5 -4 -4 -3 -------- Run | Yrd Mat Mat Min Exi Min Mat Fac Sto Rec Fac Was Fac Upp War Pro Fac Res Hostile Shots Fired 1315 | . 65 84 16 74 24 119 395 162 21 67 1 4 . 2 42 237 2 Missed 398 | . 14 23 1 24 7 31 143 53 9 13 . 3 . 1 9 67 . Hits 917 | . 51 61 15 50 17 88 252 109 12 54 1 1 . 1 33 170 2 Melee 9 | . . . . 3 . 2 . . . . 1 . . . . 3 . Projectile 908 | . 51 61 15 47 17 86 252 109 12 54 . 1 . 1 33 167 2 Critical Strikes 62 | . 2 3 . 18 1 3 13 2 2 3 1 . . . . 14 . Damage Taken 14322 | . 665 723 166 1024 337 1288 3458 1428 284 939 41 66 . 34 485 3355 29 Core 1665 | . 167 143 33 134 35 219 408 148 22 81 41 . . . 17 217 . Absorbed by Shields 249 | . . . . 195 . . . . . . . . . . . 54 . Redirected to Shielding 16 | . . 16 . . . . . . . . . . . . . . . Ignored by Resistances 185 | . . . . . . 51 . . . . . . . . . 123 11 Regen/Repaired (Parts) 1931 | . . . . . . 92 . 107 43 380 27 72 . . . 1093 117 Core Remaining (%) 55 | 100 33 . . . 13 60 . . 17 . . . . . 86 81 . Volleys Fired 779 | . 85 71 11 73 7 84 170 56 8 69 . 21 1 . 27 94 2 Largest 2 | . 2 2 2 2 1 2 2 2 2 1 . 1 1 . 1 1 1 Hottest 120 | . 60 60 120 120 39 75 75 95 68 76 . 76 64 . 64 64 64 Shots Fired 1170 | . 119 142 22 90 7 126 338 98 15 69 . 21 1 . 27 93 2 Gun 723 | . 115 . . 15 3 113 336 78 8 55 . . . . . . . Cannon 425 | . 4 142 22 75 . . 2 15 7 14 . 21 1 . 27 93 2 Launcher 22 | . . . . . 4 13 . 5 . . . . . . . . . Special . | . . . . . . . . . . . . . . . . . . Kinetic 984 | . 87 142 15 38 3 55 330 86 15 69 . 21 1 . 27 93 2 Thermal 70 | . 1 . 7 26 . 29 . 7 . . . . . . . . . Explosive 9 | . . . . . 4 . . 5 . . . . . . . . . Electromagnetic 107 | . 31 . . 26 . 42 8 . . . . . . . . . . Robot Hit Streak 16 | . 15 6 6 9 2 12 16 10 11 9 . 3 2 . 4 9 9 Robot Miss Streak 9 | . 5 5 5 5 1 4 9 7 1 6 . 3 . . 3 2 . Penetration Max 1 | . . . 1 . . . 1 1 . . . . . . . . . Secondary Targets 12 | . 1 . . . . 1 9 1 . . . . . . . . . Max Gunslinging Chain 1 | . 1 . . . . 1 1 1 . . . . . . . . . Shots Hit Robots 751 | . 79 78 11 53 4 100 226 66 9 35 . 7 1 . 16 64 2 Core Hits 442 | . 33 36 7 42 5 93 100 60 4 11 . 14 . . 5 31 1 Critical Kills 8 | . . . . . . . 5 2 . 1 . . . . . . . Critical Parts Destroyed 10 | . . . . . . 1 3 . . 2 . . . . 2 2 . Critical Strikes 25 | . 1 2 2 1 . 1 8 3 . 3 . . . . 2 2 . Destroy 19 | . . . . 1 . 1 8 2 . 3 . . . . 2 2 . Blast 5 | . . 2 2 . . . . 1 . . . . . . . . . Corrupt 1 | . 1 . . . . . . . . . . . . . . . . Melee Attacks . | . . . . . . . . . . . . . . . . . . Impact . | . . . . . . . . . . . . . . . . . . Slashing . | . . . . . . . . . . . . . . . . . . Piercing . | . . . . . . . . . . . . . . . . . . Sneak Attacks . | . . . . . . . . . . . . . . . . . . Combat Hostiles . | . . . . . . . . . . . . . . . . . . Follow-up Attacks . | . . . . . . . . . . . . . . . . . . Damage Inflicted 23346 | . 858 1303 349 1694 510 2981 5128 2036 262 1138 . 1175 42 . 731 5035 104 Guns 9206 | . 767 . . 192 27 1777 4803 1069 37 534 . . . . . . . Cannons 8957 | . 35 1303 349 681 . . 39 293 192 604 . 395 42 . 731 4189 104 Explosions 5072 | . 56 . . 821 423 1191 286 669 . . . 780 . . . 846 . Melee . | . . . . . . . . . . . . . . . . . . Ramming 111 | . . . . . 60 13 . 5 33 . . . . . . . . Kinetic 16216 | . 434 1303 246 555 27 834 4744 1245 229 1138 . 395 42 . 731 4189 104 Thermal 2440 | . 68 . 103 306 . 811 194 117 . . . . . . . 841 . Explosive 1919 | . . . . . 423 . 47 669 . . . 780 . . . . . Electromagnetic 2660 | . 356 . . 833 . 1323 143 . . . . . . . . 5 . Impact . | . . . . . . . . . . . . . . . . . . Slashing . | . . . . . . . . . . . . . . . . . . Piercing . | . . . . . . . . . . . . . . . . . . Highest Corruption 90 | . . . . 90 85 . 7 12 12 2 9 9 9 9 . 4 1 Average Corruption 18 | . . . . 46 85 . 3 8 12 1 7 9 9 9 . 3 1 Corruption Purged 5 | . . . . 5 . . . . . . . . . . . . . Corruption Blocked . | . . . . . . . . . . . . . . . . . . Effects 294 | . . . . 95 23 . 52 46 46 . 4 8 7 1 . 12 . Message Errors 79 | . . . . 27 8 . 13 13 9 . 2 3 . . . 4 . Matter Fused 65 | . . . . 21 5 . 11 14 6 . 2 2 1 . . 3 . Heat Flow Errors 30 | . . . . 6 4 . 4 3 7 . . 1 2 1 . 2 . Energy Discharges 30 | . . . . 9 1 . 9 1 8 . . . 2 . . . . Parts Rejected 7 | . . . . 3 . . 2 . 1 . . . . . . 1 . Parts Fused 4 | . . . . 2 . . . 2 . . . . . . . . . Data Loss (minor) 39 | . . . . 13 4 . 7 6 7 . . . 2 . . . . Data Loss (major) 19 | . . . . 4 1 . 3 4 4 . . 2 . . . 1 . Misfires 7 | . . . . 4 . . 2 1 . . . . . . . . . Alerts 3 | . . . . . . . . . 3 . . . . . . . . Weapon Failures 11 | . . . . 6 . . 1 2 1 . . . . . . 1 . Overload Shots . | . . . . . . . . . . . . . . . . . . Overflow Damage 725 | . 16 . 1 35 19 16 20 . . 85 . 108 38 . 95 287 5 Projectiles 514 | . . . 1 13 . . . . . 85 . 36 38 . 95 241 5 Explosions 211 | . 16 . . 22 19 16 20 . . . . 72 . . . 46 . Melee . | . . . . . . . . . . . . . . . . . . Knockbacks 41 | . 1 6 1 4 . . 1 3 . 5 . 1 . . 2 15 2 Impact . | . . . . . . . . . . . . . . . . . . Kinetic 41 | . 1 6 1 4 . . 1 3 . 5 . 1 . . 2 15 2 Secondary . | . . . . . . . . . . . . . . . . . . Self-Inflicted Damage 389 | . 73 . . 87 49 43 61 2 16 . . . . . . 58 . Shots 9 | . 2 . . 1 2 1 1 . . . . . . . . 2 . Rammed 2 | . . . . . . . . 1 1 . . . . . . . . Targets Rammed 23 | . . . . . 16 5 . 1 1 . . . . . . . . Kicked 21 | . . . . . 16 5 . . . . . . . . . . . Crushed . | . . . . . . . . . . . . . . . . . . Highest Temperature 482 | . 106 105 282 302 271 198 208 482 419 210 . 296 234 135 119 305 20 Average Temperature 88 | . 31 39 84 64 104 50 40 129 151 72 . 96 97 72 50 86 20 Received Heat Transfer 4273 | . 339 252 90 80 171 657 1170 345 170 12 . . . . . 966 21 Effects 20 | . . . . . . . . 12 7 . . 1 . . . . . Shutdowns 5 | . . . . . . . . 4 1 . . . . . . . . Energy Bleed 4 | . . . . . . . . 2 1 . . 1 . . . . . Interference 8 | . . . . . . . . 3 5 . . . . . . . . Matter Decay 1 | . . . . . . . . 1 . . . . . . . . . Short Circuit 2 | . . . . . . . . 2 . . . . . . . . . Siege Activations . | . . . . . . . . . . . . . . . . . . Martial Activations . | . . . . . . . . . . . . . . . . . . Shielding Activations . | . . . . . . . . . . . . . . . . . . Robots Disrupted 2 | . . . . . . 2 . . . . . . . . . . . Combat Hostiles 2 | . . . . . . 2 . . . . . . . . . . . Robots Corrupted . | . . . . . . . . . . . . . . . . . . Combat Hostiles . | . . . . . . . . . . . . . . . . . . Parts Fried 22 | . 4 . . 15 . 2 1 . . . . . . . . . . Impact Corruptions . | . . . . . . . . . . . . . . . . . . Robots Melted . | . . . . . . . . . . . . . . . . . . Combat Hostiles . | . . . . . . . . . . . . . . . . . . Parts Melted 6 | . . . . 1 . 3 . . 2 . . . . . . . . Heat Transferred 3109 | . 125 . 200 524 . 1338 100 222 . . . . . . . 600 . Parts Sabotaged . | . . . . . . . . . . . . . . . . . . Parts Stolen . | . . . . . . . . . . . . . . . . . . Parts Stripped . | . . . . . . . . . . . . . . . . . . Power Chain Reactions 7 | . 2 . . . . 5 . . . . . . . . . . . Latent Energy Used 5166 | . . . . 5166 . . . . . . . . . . . . . LE Corruption 78 | . . . . 78 . . . . . . . . . . . . . Alert | -11 -10 -9 -9 -9 -8 -8 -7 -7 -7 -5 -5 -5 -5 -5 -4 -4 -3 ------- Run | Yrd Mat Mat Min Exi Min Mat Fac Sto Rec Fac Was Fac Upp War Pro Fac Res Maximum Alert Level 3 | . . 1 . . . 1 2 2 . 2 . 1 . . . 3 2 Low Security (%) 64 | 100 100 85 100 . 100 43 75 45 100 17 100 53 . . . . . Level 1 21 | . . 14 . . . 56 2 48 . 67 . 46 . . . 5 . Level 2 9 | . . . . . . . 21 6 . 14 . . . . . 34 100 Level 3 3 | . . . . . . . . . . . . . . . . 59 . Level 4 . | . . . . . . . . . . . . . . . . . . Level 5 . | . . . . . . . . . . . . . . . . . . High Security . | . . . . . . . . . . . . . . . . . . Max Security . | . . . . . . . . . . . . . . . . . . Peak Influence 887 | . 92 227 82 . 44 399 626 429 186 462 69 344 . . . 887 464 Initial 464 | . . 11 58 . . . 173 282 126 422 69 . . . . 450 464 Average 195 | . 19 129 35 . 6 219 202 258 41 314 40 150 . . . 654 454 Influence Increases 6847 | . 323 579 166 . 70 1019 1321 592 240 732 . 401 . . 85 1319 . Destroy 0b10 Robot/C 3040 | . 220 380 120 . 40 640 680 360 . 160 . . . . 40 400 . Destroy 0b10 Robot/NC 440 | . 25 60 . . . 95 100 65 . 5 . 65 . . 5 20 . Destroy Leader 766 | . 62 112 30 . . 156 214 88 . 40 . 10 . . 10 44 . Allied During Kill 12 | . . . 10 . 2 . . . . . . . . . . . . Successful Hack 75 | . 6 7 . . . 8 14 . . 14 . . . . . 26 . Select Force Hacks 240 | . . . . . . . . . 240 . . . . . . . . Disable Machine 705 | . . . . . . 45 210 30 . 15 . 240 . . . 165 . Destroy Structure 404 | . 10 5 6 . 28 30 58 19 . 8 . 86 . . . 154 . Advance Influence 850 | . . . . . . . . . . 400 . . . . . 450 . Partial Spotted 15 | . . . . . . . . . . 15 . . . . . . . Lose Combat Pursuer 300 | . . 15 . . . 45 45 30 . 75 . . . . 30 60 . Influence Decreases 6403 | . 296 455 267 50 70 636 1082 888 512 588 198 137 239 25 85 434 441 Entered New Map 1615 | . . 16 93 50 . . 210 340 200 32 129 . 99 25 . . 421 Time Decay 4124 | . 256 389 170 . 54 606 697 498 312 356 40 137 140 . 75 374 20 Search Patrol Dispatched 200 | . . . . . . . . . . 200 . . . . . . . Lost Part 365 | . 40 50 . . 16 30 120 30 . . 9 . . . 10 60 . Lost Ally 44 | . . . 4 . . . . 20 . . 20 . . . . . . Purge Threat 55 | . . . . . . . 55 . . . . . . . . . . Squads Dispatched 39 | . 4 . 1 . . 4 14 5 . 3 . 2 . . . 4 2 Investigation 12 | . 2 . 1 . . 2 4 1 . . . . . . . 1 1 Extermination 12 | . . . . . . . 5 3 . 1 . 1 . . . 2 . Reinforcement 12 | . 2 . . . . 2 4 1 . 2 . 1 . . . . . Assault 1 | . . . . . . . . . . . . . . . . 1 . Garrison 2 | . . . . . . . 1 . . . . . . . . . 1 Intercept . | . . . . . . . . . . . . . . . . . . Searches Triggered 2 | . . . . . . . . . . 2 . . . . . . . Construction Impeded 1 | . . . . . . 1 . . . . . . . . . . . Haulers Reinforced 4 | . . . . . . . 1 1 . 1 . 1 . . . . . Active Scanning Responses . | . . . . . . . . . . . . . . . . . . Cargo Convoy Interrupts 1 | . . . . . . . 1 . . . . . . . . . . Stealth | -11 -10 -9 -9 -9 -8 -8 -7 -7 -7 -5 -5 -5 -5 -5 -4 -4 -3 --------- Run | Yrd Mat Mat Min Exi Min Mat Fac Sto Rec Fac Was Fac Upp War Pro Fac Res Distress Signals 13 | . . 4 . . . 6 . 1 . . . . . 1 . 1 . Communications Jammed 76 | . . . . . . . 23 52 . 1 . . . . . . . Distress Signals 66 | . . . . . . . 13 52 . 1 . . . . . . . Times Spotted 534 | . 24 29 6 279 6 48 45 25 4 17 6 9 . . 6 26 4 Peak Tracking Total 11 | . 5 4 3 11 3 6 4 7 1 6 6 2 . 6 4 5 6 Tactical Retreats 57 | . . 1 . 44 . 2 3 1 . 2 . . . . 2 2 . Traps | -11 -10 -9 -9 -9 -8 -8 -7 -7 -7 -5 -5 -5 -5 -5 -4 -4 -3 ------- Run | Yrd Mat Mat Min Exi Min Mat Fac Sto Rec Fac Was Fac Upp War Pro Fac Res Traps Triggered 6 | . 1 . . . . 1 1 . . 1 . 1 . . . 1 . Indirectly . | . . . . . . . . . . . . . . . . . . Trap Hack Attempts . | . . . . . . . . . . . . . . . . . . Triggered . | . . . . . . . . . . . . . . . . . . Disarmed . | . . . . . . . . . . . . . . . . . . Reprogrammed . | . . . . . . . . . . . . . . . . . . Reused 1 | . . . . 1 . . . . . . . . . . . . . Traps Extracted . | . . . . . . . . . . . . . . . . . . Installed 3 | . . . . 3 . . . . . . . . . . . . . Triggered . | . . . . . . . . . . . . . . . . . . Most Traps Carried 3 | . . . 3 3 . . . . . . . . . . . . . Machines | -11 -10 -9 -9 -9 -8 -8 -7 -7 -7 -5 -5 -5 -5 -5 -4 -4 -3 ---------- Run | Yrd Mat Mat Min Exi Min Mat Fac Sto Rec Fac Was Fac Upp War Pro Fac Res Machines Disabled 67 | . . . . 20 . 3 14 2 . 1 . 16 . . . 11 . Max in Single Turn 7 | . . . . 6 . 2 5 1 . 1 . 4 . . . 7 . Garrison Access 2 | . . . . . . . 2 . . . . . . . . . . Machines Repaired . | . . . . . . . . . . . . . . . . . . Machines Dismantled 1 | . . . . . . . . 1 . . . . . . . . . Machines Sabotaged . | . . . . . . . . . . . . . . . . . . Overloaded Fab Kills . | . . . . . . . . . . . . . . . . . . Hacking | -11 -10 -9 -9 -9 -8 -8 -7 -7 -7 -5 -5 -5 -5 -5 -4 -4 -3 --------- Run | Yrd Mat Mat Min Exi Min Mat Fac Sto Rec Fac Was Fac Upp War Pro Fac Res Machines Accessed 44 | . 4 1 1 1 . 6 13 1 9 3 . 2 . . . 2 1 Terminals 18 | . 4 1 . . . 4 6 1 . 1 . 1 . . . . . Fabricators 8 | . . . . . . . 4 . . 1 . 1 . . . 1 1 Repair Stations 2 | . . . . . . 1 . . . . . . . . . 1 . Recycling Units 9 | . . . . . . . 1 . 8 . . . . . . . . Scanalyzers 1 | . . . . . . 1 . . . . . . . . . . . Garrison Access 3 | . . . . . . . 2 . . 1 . . . . . . . Total Hacks 78 | . 7 2 1 1 . 18 22 1 14 3 . 3 . . . 4 2 Successful 36 | . 1 1 1 1 . 8 7 1 10 1 . 1 . . . 4 . Failed 42 | . 6 1 . . . 10 15 . 4 2 . 2 . . . . 2 Catastrophic 9 | . 1 . . . . 2 3 . . 2 . 1 . . . . . Database Lockouts . | . . . . . . . . . . . . . . . . . . Manual 36 | . 4 2 . 1 . 6 6 3 13 1 . . . . . . . Terminals 29 | . 7 2 . . . 8 8 1 . 1 . 2 . . . . . Fabricators 15 | . . . . . . . 9 . . 1 . 1 . . . 2 2 Repair Stations 7 | . . . . . . 5 . . . . . . . . . 2 . Recycling Units 15 | . . . . . . . 3 . 12 . . . . . . . . Scanalyzers 5 | . . . . . . 5 . . . . . . . . . . . Garrison Access 3 | . . . . . . . 2 . . 1 . . . . . . . Terminal Hacks 10 | . . 1 1 1 . 2 2 1 2 . . . . . . . . Open Door 2 | . . . 1 . . . . 1 . . . . . . . . . Branch Access Points 3 | . . 1 . . . 1 1 . . . . . . . . . . Unreport Threat 1 | . . . . . . . 1 . . . . . . . . . . Recall Investigation 1 | . . . . . . 1 . . . . . . . . . . . Proto ID Catalog 1 | . . . . 1 . . . . . . . . . . . . . Release Object 2 | . . . . . . . . . 2 . . . . . . . . Fabricator Hacks 7 | . . . . . . . 3 . . 1 . 1 . . . 2 . Load Schematic 5 | . . . . . . . 3 . . . . 1 . . . 1 . Build 2 | . . . . . . . . . . 1 . . . . . 1 . Repair Station Hacks 5 | . . . . . . 3 . . . . . . . . . 2 . Scan Component 3 | . . . . . . 2 . . . . . . . . . 1 . Repair 2 | . . . . . . 1 . . . . . . . . . 1 . Recycling Unit Hacks . | . . . . . . . . . . . . . . . . . . Scanalyzer 3 | . . . . . . 3 . . . . . . . . . . . Insert Component 1 | . . . . . . 1 . . . . . . . . . . . Analyze 2 | . . . . . . 2 . . . . . . . . . . . Garrison Access Hacks 2 | . . . . . . . 2 . . . . . . . . . . Seal Access 2 | . . . . . . . 2 . . . . . . . . . . Unauthorized Hacks 9 | . 1 . . . . . . . 8 . . . . . . . . Terminals 1 | . 1 . . . . . . . . . . . . . . . . Operators 1 | . 1 . . . . . . . . . . . . . . . . Fabricators . | . . . . . . . . . . . . . . . . . . Repair Stations . | . . . . . . . . . . . . . . . . . . Recycling Units 8 | . . . . . . . . . 8 . . . . . . . . Tunnel 8 | . . . . . . . . . 8 . . . . . . . . Scanalyzers . | . . . . . . . . . . . . . . . . . . Garrison Access . | . . . . . . . . . . . . . . . . . . Data Cores Recovered . | . . . . . . . . . . . . . . . . . . Used . | . . . . . . . . . . . . . . . . . . Hacking Detections 31 | . 4 1 . . . 5 10 1 3 2 . 2 . . . 2 1 Full Trace Events 9 | . . . . . . 2 4 1 . . . . . . . 1 1 Feedback Events 1 | . . . . . . . . . . . . . . . . . 1 Corruption 1 | . . . . . . . . . . . . . . . . . 1 Feedback Blocked . | . . . . . . . . . . . . . . . . . . Robot Schematics Acquired . | . . . . . . . . . . . . . . . . . . Robots Built . | . . . . . . . . . . . . . . . . . . Authchips . | . . . . . . . . . . . . . . . . . . Time . | . . . . . . . . . . . . . . . . . . Total Robot Build Rating . | . . . . . . . . . . . . . . . . . . Part Schematics Acquired 1 | . . . . . . 1 . . . . . . . . . . . Parts Built 1 | . . . . . . . . . . 1 . . . . . . . Authchips . | . . . . . . . . . . . . . . . . . . Time 197 | . . . . . . . . . . 69 . . . . . 128 . Total Part Build Rating 9 | . . . . . . . . . . 9 . . . . . . . Part Studies Acquired . | . . . . . . . . . . . . . . . . . . Parts Repaired 2 | . . . . . . 1 . . . . . . . . . 1 . Time 114 | . . . . . . 95 . . . . . . . . . 19 . Parts Recycled . | . . . . . . . . . . . . . . . . . . Recycled Matter . | . . . . . . . . . . . . . . . . . . Retrieved Matter . | . . . . . . . . . . . . . . . . . . Retrieved Components . | . . . . . . . . . . . . . . . . . . Parts Scanalyzed 1 | . . . . . . 1 . . . . . . . . . . . Part Schematics Acquired 1 | . . . . . . 1 . . . . . . . . . . . Parts Damaged . | . . . . . . . . . . . . . . . . . . Bothacking | -11 -10 -9 -9 -9 -8 -8 -7 -7 -7 -5 -5 -5 -5 -5 -4 -4 -3 ------------ Run | Yrd Mat Mat Min Exi Min Mat Fac Sto Rec Fac Was Fac Upp War Pro Fac Res Used RIF Installer . | . . . . . . . . . . . . . . . . . . Robots Hacked . | . . . . . . . . . . . . . . . . . . Non-combat . | . . . . . . . . . . . . . . . . . . Combat . | . . . . . . . . . . . . . . . . . . Robot Hacks Applied . | . . . . . . . . . . . . . . . . . . Relay Couplers Released 3 | . . . . . . . 3 . . . . . . . . . . Programmers 3 | . . . . . . . 3 . . . . . . . . . . Fabnet Peak Effective % . | . . . . . . . . . . . . . . . . . . Robots Rewired . | . . . . . . . . . . . . . . . . . . Allies Hacked . | . . . . . . . . . . . . . . . . . . Hacks Repelled . | . . . . . . . . . . . . . . . . . . Allies | -11 -10 -9 -9 -9 -8 -8 -7 -7 -7 -5 -5 -5 -5 -5 -4 -4 -3 -------- Run | Yrd Mat Mat Min Exi Min Mat Fac Sto Rec Fac Was Fac Upp War Pro Fac Res Total Allies 4 | . . . 3 . . . . . . . 1 . . . . . . Largest Group 3 | . . . 3 2 . . . . . . 1 . . . . . . Highest-Rated Group 40 | . . . 40 24 . . . . . . 31 . . . . . . Highest-Rated Ally 31 | . . . 16 16 . . . . . . 31 . . . . . . Total Orders 2 | . . . . 1 . . . 1 . . . . . . . . . STAY 1 | . . . . 1 . . . . . . . . . . . . . EXPLORE 1 | . . . . . . . . 1 . . . . . . . . . Ally Attacks 16 | . . . 4 3 2 . . . . . 7 . . . . . . Total Damage 266 | . . . 29 17 112 . . . . . 108 . . . . . . Kills 1 | . . . . . 1 . . . . . . . . . . . . Allies Corrupted . | . . . . . . . . . . . . . . . . . . Allies Melted . | . . . . . . . . . . . . . . . . . . Turrets Deployed 1 | . . . . . 1 . . . . . . . . . . . . Intel | -11 -10 -9 -9 -9 -8 -8 -7 -7 -7 -5 -5 -5 -5 -5 -4 -4 -3 ------- Run | Yrd Mat Mat Min Exi Min Mat Fac Sto Rec Fac Was Fac Upp War Pro Fac Res Active Infowar (turns) 9540 | . . 612 333 1 . 1 2197 1258 775 801 95 365 294 1748 343 659 58 Optics 37 | . . . . . . 1 . . . . . . . . . 36 . Sensors 4079 | . . . . . . . . . . 532 95 365 294 1748 343 644 58 Structural 945 | . . 612 333 . . . . . . . . . . . . . . Triangulation 2695 | . . . . . . . . . . . . 145 294 1748 223 285 . Cloaking 2433 | . . . . 1 . . . . . . . 365 268 1748 51 . . Jamming 5094 | . . . . . . . 2197 1258 775 782 82 . . . . . . Robot Analysis Total . | . . . . . . . . . . . . . . . . . . Derelict Logs Recovered 3 | . . . 1 . . . . . . . . . 1 . 1 . . Drone Launches 2 | . . . . . . . . 2 . . . . . . . . . Drone Recoveries . | . . . . . . . . . . . . . . . . . . Exploration | -11 -10 -9 -9 -9 -8 -8 -7 -7 -7 -5 -5 -5 -5 -5 -4 -4 -3 ------------- Run | Yrd Mat Mat Min Exi Min Mat Fac Sto Rec Fac Was Fac Upp War Pro Fac Res Turns Passed 18415 | 61 1371 1058 464 2463 439 2347 3232 1330 1063 801 95 365 294 1748 354 872 58 Spaces Moved 8095 | 64 459 612 305 759 164 964 1446 381 539 584 136 563 237 112 283 463 24 Core 17 | 17 . . . . . . . . . . . . . . . . . Treads 3434 | 4 241 44 . 447 1 774 1335 319 . . . 63 . . 31 175 . Legs 632 | . . . . . 163 190 . . . . . . . . . 279 . Wheels 1800 | 43 218 480 305 312 . . 111 62 269 . . . . . . . . Hover 1615 | . . . . . . . . . 270 371 . 361 237 112 252 . 12 Flight 597 | . . 88 . . . . . . . 213 136 139 . . . 9 12 Fastest Speed 30 | 50 80 95 110 115 190 120 152 115 105 66 66 30 103 103 103 103 174 Average Speed 145 | 77 169 128 131 193 235 184 171 223 118 91 66 48 103 103 103 128 181 Slowest Speed 470 | 160 240 277 160 240 470 400 400 240 125 125 66 103 103 103 103 177 189 Overloaded Moves . | . . . . . . . . . . . . . . . . . . Propulsion Burnouts . | . . . . . . . . . . . . . . . . . . Robots Hopped . | . . . . . . . . . . . . . . . . . . Potential Cave-ins . | . . . . . . . . . . . . . . . . . . Cave-ins Triggered 1 | . . . . . . . . 1 . . . . . . . . . Exploration Rate (%) 46 | 3 61 50 72 84 34 74 40 74 97 17 85 21 37 15 58 9 1 Regions Visited 17 Branch Regions 8 Pre-discovered Areas 9 | . . . . . . . . . 8 . . . . . 1 . . Known Exits Taken 6 | . . 1 . . . . 1 . . . . 1 . 1 1 1 . Unknown Exits Taken 9 | 1 1 . 1 1 1 1 . 1 1 . . . 1 . . . . Scrap Searched 1 | . . . 1 . . . . . . . . . . . . . . Spaces Dug 4 | . . . . . . . . . . . . 2 . . . 2 . Terrain Destroyed 468 | . 8 . 6 134 55 29 75 15 1 4 . 44 . . 11 86 . Melee . | . . . . . . . . . . . . . . . . . . Projectile 67 | . . . 6 12 . . 6 2 1 4 . 6 . . 11 19 . AOE 401 | . 8 . . 122 55 29 69 13 . . . 38 . . . 67 . Terrain Rammed . | . . . . . . . . . . . . . . . . . . Walls Destroyed . | . . . . . . . . . . . . . . . . . . Machines Disabled . | . . . . . . . . . . . . . . . . . . Actions | -11 -10 -9 -9 -9 -8 -8 -7 -7 -7 -5 -5 -5 -5 -5 -4 -4 -3 --------- Run | Yrd Mat Mat Min Exi Min Mat Fac Sto Rec Fac Was Fac Upp War Pro Fac Res Total 13554 | 72 949 748 348 1668 192 1412 1880 743 955 781 140 632 285 1744 318 650 37 Wait 4077 | . 387 12 6 755 . 263 135 246 384 102 5 24 48 1633 8 62 7 Move 8079 | 63 458 611 304 758 163 963 1445 380 538 584 135 562 236 111 282 462 24 Hop . | . . . . . . . . . . . . . . . . . . Pick Up 163 | 1 8 27 8 33 . 28 31 5 1 9 . 7 . . . 5 . Fast Attach 111 | 7 6 3 3 13 . 15 27 15 4 5 . 6 . . 1 6 . Attach 52 | . 2 11 3 7 2 6 9 2 . . . 2 . . . 6 2 Detach 12 | 1 1 . . 3 1 1 . . . 2 . . . . . 1 2 Swap 39 | . . 1 2 1 2 5 13 7 1 4 . 1 . . . 2 . Drop 196 | . 2 12 11 22 1 31 50 23 18 6 . 8 . . . 12 . Fire 779 | . 85 71 11 73 7 84 170 56 8 69 . 21 1 . 27 94 2 Melee . | . . . . . . . . . . . . . . . . . . Ram 2 | . . . . . . . . 1 1 . . . . . . . . Kick 21 | . . . . . 16 5 . . . . . . . . . . . Crush . | . . . . . . . . . . . . . . . . . . Escape Stasis . | . . . . . . . . . . . . . . . . . . Rewire 11 | . . . . . . 11 . . . . . . . . . . . Trap 3 | . . . . 3 . . . . . . . . . . . . . Miscellaneous 9 | . . . . . . . . 8 . . . 1 . . . . . Route ------- -11/Scrapyard -10/Materials (discovered 3 exits: *Mat x3) -9/Materials (discovered 4 exits: *Mat x2 / *Min x2) -9/Mines (discovered 3 exits: *Mat x2 / *Exi) -9/Exiles (discovered 2 exits: [*Min x2]) -8/Mines -8/Materials (discovered 2 exits: *Fac x2) -7/Factory (discovered 3 exits: *Sto / *Low x2) -7/Storage (discovered 2 exits: [*Fac] / *Rec) -7/Recycling -5/Factory -5/Waste -5/Factory (discovered 2 exits: *Upp x2) -5/Upper Caves (discovered 2 exits: *Upp / [*War]) -5/Warlord -4/Proximity Caves -4/Factory -3/Research History --------- Turn | Location | Event 4 | -11/Scrapyard | Discovered new exit (range 15) 62 | -11/Scrapyard | Entered Materials 190 | -10/Materials | Discovered new exit (range 9) 312 | -10/Materials | Build established: Mutant 762 | -10/Materials | Lost 4 parts (1p1n2w) 768 | -10/Materials | Core integrity fell below 50% 807 | -10/Materials | Discovered new exit (range 9) 1317 | -10/Materials | Discovered new exit (range 15) 1433 | -10/Materials | Entered another Materials area 1433 | -9/Materials | Evolved 2 slots: Propulsion x1, Utility x1 1674 | -9/Materials | Lost 3 parts (3n) 1787 | -9/Materials | Discovered new exit (range 15) 2157 | -9/Materials | Build established: Scavenger-Mutant 2194 | -9/Materials | Discovered new exit (range 8) 2390 | -9/Materials | Identified exit to Mines 2491 | -9/Materials | Entered Mines 2542 | -9/Mines | Discovered new exit (range 8) 2554 | -9/Mines | Met a Derelict shopkeep closing up shop 2657 | -9/Mines | Found a Scrap Suit stashed away for nefarious purposes 2679 | -9/Mines | Discovered new exit (range 13) 2699 | -9/Mines | Learned 2 Materials zone layouts 2723 | -9/Mines | Assisted by bots powering up and referring to "LRC-V3" 2763 | -9/Mines | Found a hidden stash of uninstalled traps 2948 | -9/Mines | Deemed a non-threat by the Exiles lab entrance 2948 | -9/Mines | Discovered new exit (range 5) 2955 | -9/Mines | Entered Exiles 2955 | -9/Exiles | Accompanied by 2 allies 2981 | -9/Exiles | Discovered new exit (range 15) 3019 | -9/Exiles | Met 8R-AWN 3041 | -9/Exiles | Met EX-HEX 3092 | -9/Exiles | Met EX-BIN 3115 | -9/Exiles | Aligned with FarCom system 3116 | -9/Exiles | Given EX-Vault access code 3155 | -9/Exiles | Opened EX-Vault 3165 | -9/Exiles | Found Latent Energy Streamer 3171 | -9/Exiles | Found Cloak of Protection 3179 | -9/Exiles | Found PSU Rigger 3214 | -9/Exiles | Warned to stay clear of 0b10 Research branches 3268 | -9/Exiles | Met EX-DEC 3447 | -9/Exiles | Warned about trapping Exiles lab 3458 | -9/Exiles | Attacked by the Exiles 3593 | -9/Exiles | Destroyed 8R-AWN 3735 | -9/Exiles | Core integrity fell below 50% 3751 | -9/Exiles | Build established: Mutant 3912 | -9/Exiles | System corruption reached 10% 4381 | -9/Exiles | System corruption reached 30% 4488 | -9/Exiles | Destroyed EX-HEX 4595 | -9/Exiles | Destroyed EX-BIN 4694 | -9/Exiles | Found Corrupted Prototype Device 4694 | -9/Exiles | Identified System Purifier 4860 | -9/Exiles | Destroyed EX-DEC 4893 | -9/Exiles | Found Prototype Processor 4893 | -9/Exiles | Identified Exp. Core Analyzer 4901 | -9/Exiles | Found Deploy-a-Sentry 5398 | -9/Exiles | Discovered new exit (range 10) 5418 | -9/Exiles | Stole three prototypes: Cloak of Protection, PSU Rigger, Deploy-a-Sentry 5418 | -9/Exiles | Entered Mines 5439 | -8/Mines | DAS Turret deployed 5844 | -8/Mines | Discovered new exit (range 4) 5851 | -8/Mines | Core integrity fell below 20% 5857 | -8/Mines | Entered Materials 5857 | -8/Materials | Evolved 2 slots: Propulsion x1, Utility x1 5978 | -8/Materials | Lost 3 parts (1p2n) 6670 | -8/Materials | Build established: Scavenger-Mutant 7121 | -8/Materials | Discovered new exit (range 16) 7978 | -8/Materials | Discovered new exit (range 9) 8130 | -8/Materials | Repaired Broken Cmb. Antigrav System 8204 | -8/Materials | Entered Factory 8204 | -7/Factory | Evolved 2 slots: Utility x2 8283 | -7/Factory | Discovered new exit (range 12) 8303 | -7/Factory | Identified exit to Lower Caves 8588 | -7/Factory | Garrison activated, responded to threat 9059 | -7/Factory | Lost 4 parts (1p3n) 9425 | -7/Factory | Cargo convoy interrupted 10718 | -7/Factory | Core integrity fell below 50% 10833 | -7/Factory | Build established: Mutant 11143 | -7/Factory | Discovered new exit (range 13) 11148 | -7/Factory | Lost 3 parts (1n2w) 11275 | -7/Factory | Build established: Scavenger-Mutant 11362 | -7/Factory | Identified exit to Storage 11436 | -7/Factory | Entered Storage 11720 | -7/Storage | Found Prototype Protection 11720 | -7/Storage | Identified Lgt. Regenerative Plating 12240 | -7/Storage | Destroyed 10 combat bots 12241 | -7/Storage | Crushed by falling debris 12241 | -7/Storage | System corruption reached 10% 12434 | -7/Storage | Discovered new exit (range 11) 12762 | -7/Storage | Used back door to open Recycling access 12762 | -7/Storage | Discovered new exit (range 4) 12766 | -7/Storage | Entered Recycling 12836 | -7/Recycling | Scanned before Scraplab entrance 12866 | -7/Recycling | Angered Scraplab inhabitants 12914 | -7/Recycling | Build established: Mutant 12922 | -7/Recycling | Core integrity fell below 20% 13004 | -7/Recycling | Found Prototype Device 13004 | -7/Recycling | Identified Scrap Engine 13811 | -7/Recycling | Discovered new exit (range 15) 13829 | -7/Recycling | Entered Factory 13829 | -5/Factory | Evolved 4 slots: Power x1, Propulsion x1, Utility x1, Weapon x1 14129 | -5/Factory | Search patrols dispatched 14429 | -5/Factory | Search patrols dispatched 14546 | -5/Factory | Discovered new exit (range 15) 14607 | -5/Factory | Fabricated Biometal Heavy Treads? 14630 | -5/Factory | Sucked down chute 14630 | -5/Factory | Entered Waste 14631 | -5/Waste | Met a frightened Derelict 14645 | -5/Waste | EMP discharged 14670 | -5/Waste | Spotted C-40 Crusher 14681 | -5/Waste | Spotted C-40 Crusher 14685 | -5/Waste | Spotted C-40 Crusher 14698 | -5/Waste | Spotted C-40 Crusher 14703 | -5/Waste | Spotted C-40 Crusher 14703 | -5/Waste | Spotted C-40 Crusher 14712 | -5/Waste | Crushed by Compactor (1 part destroyed, 1 dropped) 14719 | -5/Waste | Discovered new exit (range 10) 14724 | -5/Waste | Identified exit to Factory 14725 | -5/Waste | Entered Factory 14762 | -5/Factory | Build established: Construct 15083 | -5/Factory | Discovered new exit (range 7) 15087 | -5/Factory | Discovered new exit (range 12) 15088 | -5/Factory | Identified exit to Upper Caves 15090 | -5/Factory | Entered Upper Caves 15236 | -5/Upper Caves | Identified exit to Upper Caves 15384 | -5/Upper Caves | A Derelict revealed a hidden shortcut to "reach the base" 15384 | -5/Upper Caves | Entered Warlord 15423 | -5/Warlord | System corruption cleaned by Quarantine Array 15433 | -5/Warlord | Attacked by Warlord forces 15456 | -5/Warlord | Discovered new exit (range 15) 15468 | -5/Warlord | Identified exit to Proximity Caves 15591 | -5/Warlord | Warlord's base attacked by MAIN.C 15941 | -5/Warlord | Warlord forces counterattacked 16266 | -5/Warlord | Warlord base infiltrated, sounded retreat 16498 | -5/Warlord | Spotted ZD-QOL(K) 16785 | -5/Warlord | Spotted Striker 17132 | -5/Warlord | Entered Proximity Caves 17294 | -4/Proximity Caves | Spotter reported a threat 17326 | -4/Proximity Caves | Spotter reported a threat 17360 | -4/Proximity Caves | Spotter reported a threat 17443 | -4/Proximity Caves | Discovered new exit (range 15) 17461 | -4/Proximity Caves | Identified exit to Factory 17486 | -4/Proximity Caves | Entered Factory 17486 | -4/Factory | Evolved 2 slots: Utility x1, Weapon x1 17692 | -4/Factory | Found Quantum Capacitor 17887 | -4/Factory | Destroyed 7 combat bots 18037 | -4/Factory | Found Hvy. Reflective Plating 18040 | -4/Factory | Found Hvy. Reflective Plating 18042 | -4/Factory | Found Hvy. Reflective Plating 18053 | -4/Factory | Found Hvy. Reflective Plating 18055 | -4/Factory | Found Hvy. Reflective Plating 18108 | -4/Factory | Repaired Imp. Sensor Array 18226 | -4/Factory | Discovered new exit (range 6) 18232 | -4/Factory | Identified exit to Research 18236 | -4/Factory | First assault squad dispatched 18358 | -4/Factory | Entered Research 18358 | -3/Research | Evolved 2 slots: Utility x2 18414 | -3/Research | Garrison activated, responded to threat 18416 | -3/Research | Self-destructed Last Messages --------------- 18404_ Connecting with Fabricator... Feedback: System corruption (+1%). 18404_ ALERT: Suspicious activity at Fabricator R003. Dispatching Investigation squad. 18406_ Scrap Engine modifies Hvy. Kinetic Driver Construct/C: Min Damage -15, Max Integrity -96, Matter Cost -2, Max Damage -15, -Penetration Renamed Hvy. KE Construct/C. 18412_ Scrap Engine modifies Fission-Neutrino Core: Heat -2 Renamed Antimatter-Neutrino Reactor. 18412_ G-67 Veteran knocked back. 18414_ Destroyed Adv. Heat Sink. 18414_ G-67 Veteran knocked back. 18414_ G-67 Veteran calls for garrison reinforcements. 18414_ ALERT: Activating Garrison Access R004. [Achievement: Superachiever] Map ----- +----------------------------------------------------+ | ????????????????????????????????????????? | | ????????????????????????????????????????? | | ????????????????????????????????????????? | | ????????????????????????????????????????? | | ????????????????????????????????????????? | | ????????????????????????????????????????? | | ????????????????????????????????????????? | | ????????????????????????????????????????? | | ????????????????????????????????????????? | | ????????????????????????????????????????? | | ????????????????????????????????????????? | | ????????????????????????????????????????? | | ????????????????????????????????????????? | | ????????????????????????????????????????? | | ????????????????????????????????????????? | | ????????????????????????????????????????? | | ???????????????????????????????""???????? | | ??????????????????????????????""?g??????? | | ??????????? ????????????????? ?g???????? | | ??????????? #######??#+####? ??????????? | | ?????????? ### # g??????????? | | ???????????? ^ %# ???????????? | | ???????????? gg????????????? | | ????????????? t g#????????????? | | ???????????????# """ #????????????? | | ???????????????# ""F"" @ #????????????? | | ???????????????# "" "" #????????????? | | ???????????????# #????????????? | | ???????????????+ #????????????? | | ???????????????# !#????????????? | | ???????????????# #????????????? | | ???????????????# ### ##???????????? | | ???????????????# ??# T#???????????? | | ???????????????# ??# #???????????? | | ???????????????# ??# ##???????????? | | ???????????????# ???# #????????????? | | ???????????????# ???# #????????????? | | ???????????????# ???# #????????????? | | ???????????????# ????# #????????????? | | ???????????????# ????# #????????????? | | ???????????????# ????# #????????????? | | ??????????????????????######????????????? | | ????????????????????????????????????????? | | ????????????????????????????????????????? | | ????????????????????????????????????????? | | ????????????????????????????????????????? | | ????????????????????????????????????????? | | ????????????????????????????????????????? | | ????????????????????????????????????????? | | ????????????????????????????????????????? | +----------------------------------------------------+ Best States ------------- Heat Dissipation 46 Coolant Potential 80 Energy Generation 33 Energy Capacity 457 Matter Stores 300 Matter Capacity 300 Sight Range 20 Robot Scan Range 16 Terrain Scan Density 10 Jamming Range 12 Cloak Strength 5 Armor Coverage 975 Resistance: TH 25 Propulsion Shielding 33 Weapon Cycling 15 Evasion (%) 59 Targeting Accuracy 8 Core Analysis 8 Recoil Reduction 5 Offensive Hacking 20 Item Schematics ----------------- Cmb. Antigrav System | -8/Materials | Scanalyzed Robot Schematics ------------------ None Fabricated ------------ Biometal Heavy Treads | x1 | -5/Factory | Preloaded Repaired ---------- Cmb. Antigrav System | 56% | -8/Materials | Broken Imp. Sensor Array | 22% | -4/Factory Studied --------- None Alien Tech Used ----------------- None Achievements -------------- Blue Mage Superachiever Challenges ------------ None Game ------ Seed TitaniumArmageddonSword Manual? 0 Play Time 01:56:29 Cumulative 603.1 hours Start 2026.04.05 @ 16:24:40 End 2026.04.27 @ 18:26:49 Sessions 5 Manual Loads 0 Difficulty Rogue Special Mode None Game No. 928 Rogue 773 Adventurer 148 Explorer 7 Win Type - Total 29 Types 21/1/4/1/0/0/1/0/0/1 Lore% 82 Gallery% 82 Achievement% 75 Wizard Run 0 Options --------- Layout 1 ASCII 0 Keyboard 0 Movement Numpad Keybinds 0 Fullscreen 2 Font 24/Smallcaps Map View 50x35 Zoom Use 0% Tactical HUD 1 Map Filters NONE Filters NONE Steam 1 RUN: 49c496da-675d-4640-b871-79ff0d12eb3c